bitfinex-derivatives/quotes_BTCF0:USTF0_20250406
["timestamp","ask_amount","ask_price","bid_price","bid_amount"]
[1743982251233,0.4948109,77581.0,77580.0,0.01888586]
[1743982251434,0.005,77581.0,77580.0,0.01808586]
[1743982251636,0.005,77581.0,77580.0,0.14709846]
[1743982251637,0.1340109,77581.0,77580.0,0.14709846]
[1743982251835,0.005,77581.0,77580.0,0.27599683]
[1743982252037,0.005,77581.0,77580.0,0.67785812]
[1743982253027,0.005,77581.0,77580.0,1.03865812]
[1743982253237,0.005,77581.0,77580.0,0.41994715]
[1743982253238,0.4948109,77581.0,77580.0,0.41994715]
[1743982253537,0.4948109,77581.0,77580.0,0.22624715]
[1743982253731,0.0645116,77574.0,77559.0,0.4253231]
[1743982254034,0.4898292,77570.0,77566.0,0.1290349]
[1743982254233,0.4898292,77570.0,77567.0,0.3199339]
[1743982254534,0.0645053,77582.0,77568.0,0.5545]
[1743982254734,0.3608,77574.0,77568.0,0.1937]
[1743982254933,0.1290258,77573.0,77572.0,0.1290251]
[1743982255135,0.1298242,77573.0,77572.0,0.0008]
[1743982255640,0.1290292,77570.0,77569.0,0.12922434]
[1743982255830,0.1297092,77570.0,77569.0,0.00107344]
[1743982256139,0.1297092,77570.0,77569.0,0.12922434]
[1743982256330,0.1297092,77570.0,77569.0,0.13002434]
[1743982257036,0.00068,77570.0,77569.0,0.25894098]
[1743982257237,0.1290249,77573.0,77572.0,0.129024]
[1743982257531,0.005,77574.0,77573.0,0.1290228]
[1743982257738,0.005,77574.0,77573.0,0.1299028]
[1743982257933,0.1290167,77578.0,77577.0,0.1290176]
[1743982258133,0.1298967,77578.0,77577.0,0.1298576]
[1743982258332,0.00088,77578.0,77577.0,0.1298576]
[1743982258640,0.1298959,77578.0,77577.0,0.1298576]
[1743982258933,0.1298959,77578.0,77577.0,0.00084]
[1743982259139,0.1290262,77572.0,77571.0,0.1935412]
[1743982259339,0.1299062,77572.0,77571.0,0.1944212]
[1743982259743,0.1299062,77572.0,77571.0,0.00088]
[1743982260137,0.1290292,77570.0,77560.0,0.1290455]
[1743982260340,0.1290292,77570.0,77551.0,0.3608]
[1743982260540,0.1290459,77560.0,77551.0,0.3608]
[1743982260744,0.0645251,77558.0,77542.0,0.3608]
[1743982260933,0.3608,77550.0,77549.0,0.1290642]
[1743982261439,0.3608,77550.0,77532.0,0.1290917]
[1743982261637,0.3608,77533.0,77532.0,0.1290925]
[1743982261829,0.3608,77540.0,77533.0,0.00019344]
[1743982262034,0.1290846,77537.0,77536.0,0.1290858]
[1743982262531,0.1290835,77538.0,77536.0,0.12897151]
[1743982262729,0.37035263,77540.0,77536.0,0.12897151]
[1743982262930,0.49943183,77540.0,77539.0,0.1290808]
[1743982263338,0.1700841,77537.0,77536.0,0.12897151]
[1743982263536,0.0265,77526.0,77508.0,0.45730253]
[1743982263739,0.8766174,77517.0,77516.0,3e-08]
[1743982263934,0.1291258,77512.0,77511.0,0.23997218]
[1743982264135,0.1291258,77512.0,77500.0,9.704e-05]
[1743982264136,0.1291458,77500.0,77499.0,6e-08]
[1743982264344,0.1291774,77481.0,77480.0,0.53570692]
[1743982264640,0.7216,77481.0,77480.0,0.47288332]
[1743982264838,0.7216,77481.0,77480.0,0.60206242]
[1743982265042,0.8515774,77481.0,77480.0,0.47368332]
[1743982265339,1.33675421,77481.0,77480.0,0.36804892]
[1743982265543,1.38355421,77481.0,77480.0,0.36724892]
[1743982265732,1.38355421,77481.0,77480.0,0.36804892]
[1743982265938,1.38355421,77481.0,77480.0,0.36724892]
[1743982266139,1.38355421,77481.0,77480.0,0.38532981]
[1743982266339,1.38855421,77481.0,77480.0,0.38532981]
[1743982266538,1.53855421,77481.0,77480.0,0.38452981]
[1743982266737,1.53855421,77481.0,77480.0,0.36724892]
[1743982267046,1.54355421,77481.0,77480.0,0.36724892]
[1743982267340,1.39355421,77481.0,77480.0,0.36724892]
[1743982267536,0.9186,77481.0,77480.0,0.49722802]
[1743982267938,0.9186,77481.0,77480.0,0.36804892]
[1743982268138,1.0477774,77481.0,77480.0,0.49722802]
[1743982268339,1.0477774,77481.0,77480.0,0.1299791]
[1743982268340,0.7324,77481.0,77480.0,0.1299791]
[1743982268538,0.3716,77481.0,77480.0,0.25904383]
[1743982268738,0.3666,77481.0,77480.0,0.25904383]
[1743982268946,0.5007774,77481.0,77480.0,0.0008]
[1743982269138,0.3716,77481.0,77480.0,0.1291791]
[1743982269339,0.3716,77481.0,77480.0,0.25904383]
[1743982269535,0.0108,77481.0,77480.0,0.25904383]
[1743982269737,0.005,77481.0,77480.0,0.25904383]
[1743982270047,7e-08,77488.0,77487.0,0.1291674]
[1743982270240,0.3608,77509.0,77503.0,0.1291408]
[1743982270441,0.22483049,77511.0,77503.0,0.4899408]
[1743982270636,0.18782515,77504.0,77503.0,0.4909808]
[1743982270841,0.18706515,77504.0,77503.0,0.25820553]
[1743982271649,0.00019357,77511.0,77510.0,0.1291291]
[1743982271842,0.00019357,77511.0,77510.0,0.4899291]
[1743982272251,0.0645495,77536.0,77516.0,0.0645659]
[1743982272450,0.0645619,77521.0,77517.0,0.1927]
[1743982272654,0.1291287,77518.0,77517.0,0.3218303]
[1743982272848,0.1291287,77518.0,77517.0,0.1927]
[1743982273043,0.0645715,77510.0,77493.0,0.1291645]
[1743982273244,0.0645838,77495.0,77494.0,0.0645836]
[1743982273445,0.0645838,77495.0,77494.0,0.06477717]
[1743982273753,0.489962,77498.0,77497.0,0.1291637]
[1743982273952,0.129167,77495.0,77494.0,0.00019357]
[1743982274349,0.129182,77486.0,77485.0,0.3667]
[1743982274555,0.49975568,77486.0,77485.0,0.1852]
[1743982275048,0.37057368,77486.0,77485.0,0.3143837]
[1743982275245,0.3608,77498.0,77496.0,0.064582]
[1743982275441,0.3608,77498.0,77497.0,0.4958637]
[1743982275649,0.1976,77504.0,77503.0,0.1291537]
[1743982275854,0.19868,77504.0,77503.0,0.5271337]
[1743982276041,0.00108,77504.0,77503.0,0.5271337]
[1743982276545,0.00108,77504.0,77503.0,0.67334207]
[1743982276754,0.0645634,77520.0,77503.0,0.67334207]
[1743982276755,0.3608,77524.0,77507.0,0.0645732]
[1743982276945,0.1291453,77508.0,77507.0,0.00136]
[1743982277250,0.00148,77508.0,77507.0,0.527407]
[1743982277459,0.0645701,77511.0,77507.0,0.54446171]
[1743982277648,0.1291453,77508.0,77507.0,0.41544194]
[1743982277846,0.13054531,77508.0,77507.0,0.41544194]
[1743982278357,0.49234531,77508.0,77507.0,0.01854194]
[1743982278653,0.129162,77498.0,77497.0,0.1982]
[1743982278850,0.130522,77498.0,77497.0,0.19964]
[1743982279054,0.00136,77498.0,77497.0,0.3288037]
[1743982279351,0.1823,77499.0,77498.0,0.129162]
[1743982279554,0.1823,77499.0,77498.0,0.00136]
[1743982279555,0.3114603,77499.0,77498.0,0.00136]
[1743982279752,0.00136,77499.0,77498.0,0.676622]
[1743982279948,0.1823,77503.0,77502.0,0.1291553]
[1743982280151,0.3668,77508.0,77502.0,0.1305153]
[1743982280451,0.006,77508.0,77507.0,0.129147]
[1743982280654,0.1351453,77508.0,77507.0,0.130507]
[1743982280852,0.006,77508.0,77507.0,0.130507]
[1743982281053,0.006,77508.0,77507.0,0.14850211]
[1743982281258,0.006,77508.0,77507.0,0.2775302]
[1743982281449,0.3608,77515.0,77514.0,0.1291353]
[1743982281758,0.4899337,77515.0,77514.0,0.00136]
[1743982282059,0.3608,77515.0,77514.0,0.1291353]
[1743982282555,0.3608,77515.0,77514.0,0.14873001]
[1743982282745,0.3658,77515.0,77514.0,0.01959471]
[1743982282952,0.4949337,77515.0,77514.0,0.00136]
[1743982283250,0.3608,77515.0,77514.0,0.14884371]
[1743982283454,0.3658,77515.0,77514.0,0.14884371]
[1743982283657,0.4949337,77515.0,77514.0,0.14884371]
[1743982284151,0.3658,77515.0,77514.0,0.14884371]
[1743982284352,0.005,77515.0,77514.0,0.63865183]
[1743982284556,0.3608,77537.0,77536.0,0.1290987]
[1743982284746,0.4898689,77554.0,77541.0,0.1290904]
[1743982284951,0.00976922,77549.0,77541.0,0.14899694]
[1743982285259,0.3608,77543.0,77541.0,0.27800337]
[1743982285451,0.1927,77548.0,77541.0,0.27800337]
[1743982285656,0.18706515,77560.0,77553.0,0.1290704]
[1743982285857,0.18706515,77560.0,77553.0,0.14905525]
[1743982286360,0.4971687,77554.0,77553.0,0.01998485]
[1743982286556,0.4898687,77554.0,77553.0,0.14761525]
[1743982286857,0.4898687,77554.0,77553.0,0.01854485]
[1743982287054,0.6398687,77554.0,77553.0,0.01854485]
[1743982287253,1.33988449,77554.0,77553.0,0.01854485]
[1743982287455,0.1291004,77535.0,77534.0,0.12929544]
[1743982287756,0.1291004,77535.0,77534.0,0.00163344]
[1743982287757,0.4899004,77535.0,77534.0,0.00163344]
[1743982287953,0.1291137,77527.0,77515.0,0.3608]
[1743982288153,0.13897226,77535.0,77534.0,0.129102]
[1743982288354,0.13897226,77535.0,77534.0,0.130462]
[1743982288664,0.129092,77540.0,77539.0,0.0645461]
[1743982288962,0.1290954,77538.0,77537.0,0.3267937]
[1743982289154,0.1290954,77538.0,77537.0,0.3281937]
[1743982290161,0.1290954,77538.0,77537.0,0.1991]
[1743982290358,0.1290954,77538.0,77510.0,0.0645709]
[1743982290359,0.129132,77516.0,77510.0,0.0645709]
[1743982290555,0.129132,77516.0,77515.0,0.4912903]
[1743982290755,0.1291297,77518.0,77517.0,0.1291287]
[1743982290955,0.3149297,77518.0,77517.0,0.14849981]
[1743982291157,0.3149297,77518.0,77517.0,0.01937111]
[1743982291459,0.68561902,77518.0,77517.0,0.01937111]
[1743982291656,1.29883526,77518.0,77499.0,0.00103226]
[1743982291856,0.1291587,77500.0,77499.0,0.00103226]
[1743982292273,0.129182,77486.0,77485.0,0.1879]
[1743982292580,0.1291987,77476.0,77475.0,0.00103258]
[1743982292769,0.1291987,77476.0,77475.0,0.00239258]
[1743982292974,0.00013505,77476.0,77475.0,0.13159298]
[1743982293177,0.00013505,77476.0,77475.0,0.26062607]
[1743982293474,0.00013505,77476.0,77475.0,0.62142607]
[1743982293673,0.00013505,77476.0,77475.0,0.26062607]
[1743982294276,0.00019358,77483.0,77482.0,0.1291887]
[1743982294468,0.14776,77504.0,77498.0,0.1291586]
[1743982294673,0.1291587,77500.0,77499.0,0.3266603]
[1743982294876,0.54786515,77505.0,77504.0,0.129152]
[1743982295068,0.18706515,77505.0,77504.0,0.130512]
[1743982295269,0.18706515,77505.0,77504.0,1.630512]
[1743982295479,0.18706515,77505.0,77504.0,1.991312]
[1743982295674,0.18706515,77505.0,77504.0,2.12033676]
[1743982296172,0.67701545,77505.0,77504.0,1.50136]
[1743982296369,0.064577,77503.0,77497.0,0.00019358]
[1743982296575,0.064577,77503.0,77473.0,0.3608]
[1743982296576,0.129182,77486.0,77485.0,0.1975]
[1743982297084,0.129182,77486.0,77485.0,0.19846]
[1743982297387,0.309582,77486.0,77485.0,0.3276437]
[1743982297884,0.314582,77486.0,77485.0,0.3276437]
[1743982298471,0.3608,77512.0,77492.0,0.129172]
[1743982298679,0.3608,77512.0,77502.0,0.1291553]
[1743982298885,0.3608,77512.0,77511.0,0.1291403]
[1743982299179,0.1291387,77512.0,77511.0,0.1946689]
[1743982299384,0.1291387,77512.0,77511.0,0.2129713]
[1743982299678,0.1291703,77494.0,77493.0,0.1291691]
[1743982299885,0.1291703,77494.0,77493.0,0.3202691]
[1743982300081,0.1298503,77494.0,77493.0,0.3209891]
[1743982300281,0.00068,77494.0,77493.0,0.3209891]
[1743982300980,0.18548,77494.0,77493.0,0.3209891]
[1743982301183,0.00568,77494.0,77493.0,0.3209891]
[1743982301484,0.005,77494.0,77493.0,0.45003218]
[1743982301684,0.00568,77494.0,77493.0,0.45003218]
[1743982301877,0.1358487,77494.0,77493.0,0.45003218]
[1743982302184,0.1358487,77494.0,77493.0,0.00072]
[1743982302383,0.1348487,77494.0,77493.0,0.00072]
[1743982302577,0.00668,77494.0,77493.0,0.00072]
[1743982302784,0.00668,77494.0,77493.0,0.25893338]
[1743982302978,0.006,77494.0,77493.0,0.25893338]
[1743982303582,0.0096136,77518.0,77493.0,0.27976308]
[1743982303780,0.00068,77518.0,77510.0,0.0645705]
[1743982303982,0.1937095,77513.0,77512.0,0.1291341]
[1743982304184,0.1944295,77513.0,77512.0,0.1298141]
[1743982304387,0.1944295,77513.0,77512.0,0.00068]
[1743982304582,0.1944295,77513.0,77484.0,0.0645919]
[1743982304583,0.54422,77513.0,77495.0,0.3802]
[1743982304886,0.3608,77506.0,77505.0,0.1291503]
[1743982305085,0.1974,77513.0,77512.0,0.1291387]
[1743982305382,0.00956675,77518.0,77517.0,0.1291303]
[1743982305588,0.18706515,77519.0,77518.0,0.1291287]
[1743982306181,0.1386298,77519.0,77518.0,0.1291287]
[1743982306388,0.12932039,77520.0,77519.0,0.129127]
[1743982306788,0.00019339,77520.0,77519.0,0.129127]
[1743982307085,0.12931879,77520.0,77519.0,0.321027]
[1743982307293,0.12931879,77520.0,77519.0,0.33856723]
[1743982307585,0.12931879,77520.0,77519.0,0.14666723]
[1743982308285,0.13908806,77520.0,77519.0,0.01754023]
[1743982308491,0.1291653,77496.0,77495.0,0.1972]
[1743982308682,0.4899653,77496.0,77495.0,0.1972]
[1743982309281,0.1291653,77496.0,77495.0,0.326367]
[1743982309586,0.3608,77496.0,77495.0,0.326367]
[1743982309780,0.1291653,77496.0,77495.0,0.326367]
[1743982309985,0.4899653,77496.0,77495.0,0.326367]
[1743982310184,0.4909253,77496.0,77495.0,0.327167]
[1743982310380,0.36176,77496.0,77495.0,0.45620675]
[1743982310785,0.36776,77496.0,77495.0,0.45620675]
[1743982310991,0.36776,77496.0,77495.0,1.95620675]
[1743982311188,0.006,77496.0,77495.0,1.95620675]
[1743982311489,0.1291572,77501.0,77500.0,0.1291587]
[1743982311694,0.1299972,77501.0,77500.0,0.14762986]
[1743982311882,0.00084,77501.0,77500.0,0.14762986]
[1743982312082,0.0645492,77537.0,77533.0,0.1291025]
[1743982312282,0.3608,77540.0,77500.0,0.52927116]
[1743982312283,0.18774515,77535.0,77534.0,0.14694782]
[1743982312483,0.32652655,77535.0,77534.0,0.01864315]
[1743982312689,0.32652655,77535.0,77534.0,0.01784315]
[1743982312690,0.47226436,77535.0,77534.0,0.01784315]
[1743982313281,0.47226436,77535.0,77524.0,0.0645593]
[1743982313282,0.129112,77528.0,77527.0,0.00019358]
[1743982313486,0.490672,77528.0,77527.0,0.00019358]
[1743982313686,0.1291387,77512.0,77511.0,0.5078403]
[1743982313989,0.1298587,77512.0,77511.0,0.5085603]
[1743982314377,0.00072,77512.0,77511.0,0.63753514]
[1743982314580,0.00072,77512.0,77511.0,0.50839484]
[1743982314581,0.1291387,77512.0,77511.0,0.50839484]
[1743982314792,0.1298587,77512.0,77511.0,0.37942]
[1743982314978,0.3608,77490.0,77483.0,0.1903]
[1743982315184,0.0645946,77482.0,77470.0,0.01240177]
[1743982315382,0.7216,77471.0,77447.0,0.3608]
[1743982315583,0.34376,77470.0,77457.0,0.3608]
[1743982315886,0.1292387,77452.0,77437.0,0.3608]
[1743982316086,0.4900387,77452.0,77437.0,0.3608]
[1743982316284,0.4900387,77452.0,77449.0,0.1278693]
[1743982316285,0.1292421,77450.0,77449.0,0.1278693]
[1743982316585,0.8874021,77450.0,77449.0,0.1278693]
[1743982316788,0.1292537,77443.0,77442.0,0.2746509]
[1743982316987,0.1557771,77429.0,77428.0,0.52335286]
[1743982317187,0.9982371,77429.0,77428.0,0.52335286]
[1743982317385,0.77784014,77429.0,77428.0,0.52335286]
[1743982317580,0.50816,77429.0,77428.0,0.65263166]
[1743982317793,0.3608,77443.0,77428.0,0.12915141]
[1743982317988,0.00019373,77436.0,77435.0,0.1292671]
[1743982318593,0.3608,77465.0,77439.0,0.0646296]
[1743982318889,0.3608,77461.0,77449.0,0.3608]
[1743982319090,0.5471,77468.0,77456.0,1.5]
[1743982319284,0.1863,77468.0,77460.0,0.0646124]
[1743982319594,4.379e-05,77467.0,77457.0,0.1828]
[1743982319791,4.379e-05,77467.0,77464.0,0.1292179]
[1743982320092,0.42625119,77467.0,77464.0,0.0008]
[1743982320395,0.1292421,77450.0,77449.0,0.3608]
[1743982320581,0.4908421,77450.0,77449.0,0.00069279]
[1743982320786,0.1292771,77429.0,77428.0,0.1828]
[1743982320988,0.13024089,77429.0,77428.0,0.00076]
[1743982321190,0.13024089,77429.0,77428.0,0.01766352]
[1743982321393,0.00096379,77429.0,77428.0,0.01766352]
[1743982321699,0.00096379,77429.0,77428.0,0.21276352]
[1743982321992,0.00096379,77429.0,77428.0,0.34280232]
[1743982322182,4.379e-05,77429.0,77428.0,0.47195373]
[1743982322389,0.00019373,77436.0,77435.0,0.1292671]
[1743982322583,0.1858,77451.0,77435.0,0.2799471]
[1743982322789,0.3608,77461.0,77460.0,0.1292254]
[1743982323084,0.006,77467.0,77466.0,0.1292154]
[1743982323287,0.00988987,77471.0,77466.0,0.0653673]
[1743982323490,0.00088,77471.0,77467.0,0.1951]
[1743982323691,0.00088,77471.0,77467.0,0.1959]
[1743982323999,0.00088,77471.0,77467.0,0.03043145]
[1743982324000,0.129212,77468.0,77467.0,0.03043145]
[1743982324183,0.129222,77462.0,77461.0,8e-08]
[1743982324383,0.130302,77462.0,77461.0,8e-08]
[1743982324891,0.42275476,77462.0,77461.0,8e-08]
[1743982325289,0.53533276,77462.0,77461.0,8e-08]
[1743982325492,0.522102,77462.0,77461.0,8e-08]
[1743982325689,0.19718,77462.0,77461.0,0.12922378]
[1743982325885,0.00108,77462.0,77461.0,0.14706829]
[1743982326093,0.006,77468.0,77464.0,0.064609]
[1743982326285,0.006,77468.0,77461.0,0.18130008]
[1743982326498,0.006,77468.0,77467.0,0.3608]
[1743982326499,0.1352129,77468.0,77467.0,0.3608]
[1743982326800,0.3608,77490.0,77467.0,0.3608]
[1743982326991,0.01243231,77496.0,77476.0,0.3608]
[1743982327299,0.1291853,77484.0,77483.0,0.3608]
[1743982327496,0.1291853,77484.0,77483.0,0.37848292]
[1743982327690,0.64824202,77484.0,77483.0,0.35460627]
[1743982327891,0.1292254,77460.0,77459.0,0.3608]
[1743982328085,0.31929389,77470.0,77459.0,0.37860937]
[1743982328290,0.1292254,77460.0,77459.0,0.12905806]
[1743982328595,0.00120001,77460.0,77457.0,0.0001936]
[1743982328796,0.00120001,77460.0,77459.0,0.490027]
[1743982328994,0.129216,77466.0,77458.0,0.0646143]
[1743982329196,0.006,77460.0,77457.0,0.0001936]
[1743982329392,0.4900287,77458.0,77457.0,0.0001936]
[1743982329602,0.4911087,77458.0,77457.0,0.0001936]
[1743982329796,0.27938611,77458.0,77457.0,0.0001936]
[1743982329995,0.52045741,77458.0,77457.0,0.0001936]
[1743982330300,0.00108,77458.0,77457.0,0.129424]
[1743982330505,0.1303087,77458.0,77457.0,0.0001936]
[1743982330800,0.2665124,77458.0,77457.0,0.0001936]
[1743982331199,0.7509124,77458.0,77457.0,0.0001936]
[1743982331399,0.0646214,77450.0,77424.0,0.3608]
[1743982331596,0.7452,77449.0,77441.0,0.1292562]
[1743982331802,0.1292647,77437.0,77435.0,0.1292664]
[1743982332100,0.1292788,77428.0,77413.0,0.0646513]
[1743982332400,0.1293122,77408.0,77403.0,0.00103354]
[1743982332593,0.1293122,77408.0,77407.0,0.11705124]
[1743982332594,0.8509122,77408.0,77407.0,0.11705124]
[1743982332901,0.1293189,77404.0,77403.0,8e-08]
[1743982333098,0.2303989,77404.0,77403.0,8e-08]
[1743982333408,0.51611268,77404.0,77403.0,8e-08]
[1743982333606,0.26611268,77404.0,77403.0,8e-08]
[1743982333805,0.36611268,77404.0,77403.0,8e-08]
[1743982334303,0.1303989,77404.0,77403.0,8e-08]
[1743982334499,0.00108,77404.0,77403.0,0.12932058]
[1743982334795,0.1303989,77404.0,77403.0,8e-08]
[1743982334997,0.1403989,77404.0,77403.0,8e-08]
[1743982335794,0.01108,77404.0,77403.0,0.12932058]
[1743982335997,0.1912,77421.0,77410.0,0.0646542]
[1743982336198,0.0646473,77419.0,77403.0,0.1291932]
[1743982336404,0.4951189,77404.0,77403.0,8e-08]
[1743982336599,0.0646709,77391.0,77388.0,0.1874]
[1743982336804,0.1293344,77395.0,77392.0,0.1293379]
[1743982336996,0.0646651,77398.0,77393.0,0.2520681]
[1743982337195,0.1293356,77394.0,77393.0,0.1874]
[1743982337497,0.1293356,77394.0,77384.0,0.064676]
[1743982337702,0.1293439,77389.0,77388.0,0.1874]
[1743982338004,0.00019373,77397.0,77396.0,0.1293322]
[1743982338201,0.3608,77404.0,77403.0,0.1293205]
[1743982338402,0.3749,77414.0,77413.0,0.1293038]
[1743982338707,0.006,77415.0,77414.0,0.1293022]
[1743982338911,0.3749,77426.0,77409.0,0.3608]
[1743982339107,0.3749,77426.0,77414.0,0.0646508]
[1743982339311,0.1292988,77416.0,77415.0,0.0173307]
[1743982339507,0.4900988,77416.0,77415.0,0.0173307]
[1743982339713,0.00019373,77425.0,77415.0,0.0173307]
[1743982339913,0.4900988,77416.0,77415.0,0.0173307]
[1743982340212,0.6371861,77416.0,77415.0,0.0180107]
[1743982340407,0.8818388,77416.0,77415.0,0.0173307]
[1743982340605,0.1293072,77411.0,77410.0,0.00019373]
[1743982340805,0.1300672,77411.0,77410.0,0.00019373]
[1743982341214,0.1300672,77411.0,77410.0,0.01759848]
[1743982342306,0.42313059,77411.0,77410.0,0.00651858]
[1743982342503,1.03993059,77411.0,77410.0,8e-08]
[1743982342809,0.0646565,77408.0,77386.0,0.3608]
[1743982343008,0.00076,77408.0,77405.0,0.0646579]
[1743982343204,0.1293155,77406.0,77405.0,0.00068]
[1743982343409,0.129323,77402.0,77401.0,0.1293239]
[1743982343609,0.15304,77411.0,77410.0,0.1293088]
[1743982343811,0.00776,77411.0,77410.0,0.1300688]
[1743982344015,0.00776,77411.0,77410.0,0.14751242]
[1743982344216,0.4971072,77411.0,77410.0,0.00076]
[1743982344516,0.1293272,77399.0,77391.0,0.06467]
[1743982344813,0.0008,77399.0,77398.0,0.14714273]
[1743982345006,0.193,77410.0,77409.0,0.1293105]
[1743982345208,0.00076,77410.0,77409.0,0.1476106]
[1743982345404,0.007,77411.0,77409.0,0.0183001]
[1743982345609,0.0068,77411.0,77410.0,0.1469289]
[1743982345819,0.006,77411.0,77410.0,0.1476089]
[1743982346133,0.4909472,77411.0,77410.0,0.0183001]
[1743982346411,0.4909472,77411.0,77410.0,0.0176201]
[1743982346412,0.1301472,77411.0,77410.0,0.0176201]
[1743982346613,0.00084,77411.0,77410.0,0.5077289]
[1743982346814,0.00019373,77413.0,77412.0,0.1293055]
[1743982347009,0.00019373,77413.0,77412.0,0.1476856]
[1743982347406,0.00019373,77413.0,77412.0,0.5084856]
[1743982347715,0.36099373,77413.0,77412.0,0.1476856]
[1743982347907,0.00107373,77413.0,77412.0,0.1476856]
[1743982348112,0.00107373,77413.0,77412.0,0.5084856]
[1743982348612,0.00119373,77413.0,77412.0,0.5084856]
[1743982348807,0.00119373,77413.0,77412.0,0.3791801]
[1743982349014,0.00119373,77413.0,77412.0,0.0183801]
[1743982349322,0.00719373,77413.0,77412.0,0.5077256]
[1743982349511,0.14921189,77426.0,77425.0,0.1292838]
[1743982349815,0.14692,77462.0,77438.0,0.1292621]
[1743982350019,0.01240223,77466.0,77438.0,2.2400601]
[1743982350213,0.1292221,77463.0,77462.0,0.1938289]
[1743982350515,0.1292221,77463.0,77462.0,0.212249]
[1743982350516,0.0008,77463.0,77462.0,0.212249]
[1743982350817,0.1300204,77463.0,77462.0,0.0176201]
[1743982351013,0.1300204,77463.0,77462.0,0.0184201]
[1743982351408,0.129232,77456.0,77455.0,0.00019373]
[1743982351713,0.130032,77456.0,77455.0,0.00099373]
[1743982351915,0.1292532,77444.0,77443.0,0.1292521]
[1743982352118,0.1292479,77447.0,77446.0,0.1292454]
[1743982352418,0.0646266,77444.0,77440.0,0.0646293]
[1743982352617,0.0646266,77444.0,77441.0,0.1292537]
[1743982352820,0.00076,77444.0,77443.0,0.1292537]
[1743982353012,0.00076,77444.0,77443.0,0.1300137]
[1743982353206,0.00019373,77451.0,77450.0,0.1292421]
[1743982353412,0.00095373,77451.0,77450.0,0.1300421]
[1743982353912,0.001,77463.0,77462.0,0.129222]
[1743982354112,0.00168,77463.0,77462.0,0.490822]
[1743982354322,0.3608,77484.0,77469.0,0.1292104]
[1743982354515,0.42736461,77470.0,77469.0,0.01896489]
[1743982354713,0.42736461,77470.0,77469.0,0.01788489]
[1743982354914,0.42736461,77470.0,77469.0,0.01888489]
[1743982355114,0.42736461,77470.0,77469.0,0.01788489]
[1743982356224,0.00196001,77470.0,77469.0,0.14709529]
[1743982356409,0.4920087,77470.0,77469.0,0.01884489]
[1743982356609,0.5920087,77470.0,77469.0,9e-08]
[1743982356916,0.1292421,77450.0,77449.0,0.3608]
[1743982357120,0.0646187,77453.0,77443.0,0.0646264]
[1743982357314,0.1292587,77440.0,77439.0,0.1829]
[1743982357516,0.3608,77441.0,77440.0,0.1292587]
[1743982358017,0.3608,77441.0,77440.0,0.25837759]
[1743982358225,0.4900571,77441.0,77440.0,0.12911889]
[1743982358425,0.3608,77441.0,77440.0,0.3094587]
[1743982359825,0.00019373,77448.0,77447.0,0.1292471]
[1743982360018,0.00091373,77448.0,77447.0,0.1299271]
[1743982360224,0.12943913,77448.0,77447.0,0.1299271]
[1743982360523,0.13019913,77448.0,77447.0,0.4957271]
[1743982360723,0.49099913,77448.0,77447.0,0.4957271]
[1743982360915,0.36175373,77448.0,77447.0,0.4957271]
[1743982361118,1.55232,77512.0,77456.0,0.129232]
[1743982361119,0.3608,77467.0,77456.0,0.129232]
[1743982361429,0.1292304,77457.0,77456.0,0.001]
[1743982361617,0.1292304,77457.0,77447.0,0.3658]
[1743982361618,0.0646173,77455.0,77447.0,0.3658]
[1743982361818,0.1805,77458.0,77457.0,0.1292304]
[1743982362028,0.1292437,77449.0,77448.0,0.12910472]
[1743982362225,0.3608,77449.0,77433.0,0.0646346]
[1743982362527,0.129256,77442.0,77441.0,0.1292554]
[1743982362722,0.0646227,77448.0,77441.0,0.1998]
[1743982363022,0.4900554,77442.0,77441.0,0.1998]
[1743982363323,0.1292688,77434.0,77433.0,0.00019373]
[1743982363529,0.1292688,77434.0,77433.0,0.01966459]
[1743982363916,0.0646362,77432.0,77411.0,0.00989983]
[1743982364121,0.1292738,77431.0,77430.0,0.1292747]
[1743982364425,0.1292838,77425.0,77424.0,0.1989]
[1743982364726,0.3608,77426.0,77425.0,0.1292838]
[1743982364928,0.4900821,77426.0,77425.0,0.1292838]
[1743982365221,0.0646446,77422.0,77418.0,0.00019373]
[1743982365427,0.1292938,77419.0,77418.0,0.00019373]
[1743982366014,0.3608,77419.0,77418.0,0.00019373]
[1743982366222,0.3608,77419.0,77418.0,0.12948923]
[1743982366721,0.36099373,77433.0,77432.0,0.1292721]
[1743982366917,0.3608,77448.0,77447.0,0.1292471]
[1743982367123,0.0646292,77441.0,77440.0,0.1292587]
[1743982367320,0.3608,77441.0,77440.0,1.6301787]
[1743982367630,0.36172,77441.0,77440.0,1.6301787]
[1743982367835,0.3608,77448.0,77447.0,0.1292471]
[1743982368021,0.49124541,77448.0,77447.0,0.1304471]
[1743982368325,0.001,77470.0,77466.0,0.0646069]
[1743982368530,0.001,77470.0,77468.0,0.3608]
[1743982368724,0.129212,77468.0,77467.0,0.0646061]
[1743982369024,0.1824,77469.0,77468.0,0.130772]
[1743982369229,0.1824,77469.0,77468.0,0.129212]
[1743982369425,0.1824,77469.0,77468.0,0.490012]
[1743982369626,0.3116104,77469.0,77468.0,0.14834497]
[1743982369931,0.3116104,77469.0,77468.0,0.01913297]
[1743982370125,0.8613104,77469.0,77461.0,0.00019373]
[1743982370427,0.1292337,77455.0,77446.0,0.1292483]
[1743982370631,0.1292337,77455.0,77448.0,0.0646225]
[1743982370829,0.1292337,77455.0,77443.0,0.1923]
[1743982371024,0.3843,77456.0,77444.0,0.0646258]
[1743982371231,0.3246337,77455.0,77454.0,0.1292354]
[1743982371531,0.1292354,77454.0,77453.0,0.4900368]
[1743982371718,0.3181354,77454.0,77453.0,0.4900368]
[1743982371918,0.3181354,77454.0,77453.0,0.1292368]
[1743982372329,0.1292354,77454.0,77453.0,0.1292368]
[1743982372527,0.00019373,77458.0,77457.0,0.1292304]
[1743982372732,0.00019373,77458.0,77450.0,0.3608]
[1743982372923,0.1292404,77451.0,77450.0,0.3608]
[1743982373125,0.32304464,77457.0,77456.0,0.129232]
[1743982373428,0.00019373,77458.0,77457.0,0.1292304]
[1743982373734,0.3608,77475.0,77469.0,0.1292104]
[1743982373926,0.4254002,77475.0,77469.0,0.1292104]
[1743982374231,0.0645866,77492.0,77491.0,0.1291737]
[1743982374421,0.129177,77489.0,77488.0,0.3608]
[1743982374622,0.129177,77489.0,77488.0,0.3624]
[1743982375023,0.0001936,77496.0,77488.0,0.3624]
[1743982375231,0.0001936,77496.0,77493.0,0.1291703]
[1743982375433,0.0001936,77496.0,77493.0,0.1307303]
[1743982375932,0.0001936,77496.0,77493.0,0.14973865]